bitfinex/quotes_ETHUSD_20260130
["timestamp","ask_amount","ask_price","bid_price","bid_amount"]
[1769739844884,14.42893683,2719.4,2718.7,0.002]
[1769739845061,14.75423108,2719.3,2717.4,14.5]
[1769739845381,13.99533519,2719.1,2717.4,0.002]
[1769739845791,13.99533519,2719.1,2717.0,3.92027062]
[1769739845792,13.98423108,2718.4,2717.0,0.2398375]
[1769739846088,2.16953352,2718.3,2717.0,0.2398375]
[1769739846256,0.77,2718.3,2717.0,0.2398375]
[1769739846453,0.77,2718.2,2717.0,0.2398375]
[1769739846658,0.1024,2719.0,2717.1,0.01110411]
[1769739846897,0.77,2718.9,2717.1,0.01110411]
[1769739847060,0.77,2718.9,2716.7,3.68052999]
[1769739847061,13.98423108,2717.1,2713.9,0.18432]
[1769739847375,0.1024,2715.7,2713.4,0.44953899]
[1769739847577,13.98423108,2715.5,2713.4,0.44953899]
[1769739847785,0.1024,2714.1,2712.8,0.01110411]
[1769739847945,0.1024,2713.6,2712.2,0.01110411]
[1769739848148,13.98423108,2712.3,2709.9,0.92253792]
[1769739848388,13.98423108,2712.3,2708.7,0.01110411]
[1769739848389,0.1919,2711.3,2710.4,0.00464525]
[1769739848699,0.1919,2711.3,2708.6,13.51399817]
[1769739848700,0.77,2711.2,2708.6,17.20583521]
[1769739848929,0.77,2711.6,2709.8,0.0171227]
[1769739849212,18.52943435,2712.8,2709.8,0.0171227]
[1769739849213,18.29586405,2713.4,2711.0,0.92016266]
[1769739849370,0.92128537,2713.6,2711.2,0.01110411]
[1769739849574,0.771,2713.5,2711.9,0.00910411]
[1769739849771,0.771,2713.5,2711.8,0.00910411]
[1769739849972,0.35968112,2714.3,2712.1,0.01110411]
[1769739850302,0.35968112,2714.3,2712.8,0.01110411]
[1769739850487,0.35968112,2714.3,2712.6,0.01110411]
[1769739850488,1.28073524,2714.3,2712.6,0.01110411]
[1769739850690,0.56485464,2714.3,2712.8,0.01110411]
[1769739850901,0.01110411,2715.2,2713.6,0.01110411]
[1769739850902,0.771,2715.2,2713.6,0.01110411]
[1769739851201,0.771,2715.2,2712.8,0.01110411]
[1769739851402,0.92077639,2715.1,2713.3,0.92138724]
[1769739851603,0.92077639,2715.1,2713.4,0.01110411]
[1769739851804,0.771,2715.1,2713.4,0.01110411]
[1769739852203,4.09675416,2715.9,2714.0,0.01110411]
[1769739852204,0.92053906,2715.8,2714.0,0.01110411]
[1769739852426,1.69153906,2715.8,2713.5,0.01110411]
[1769739852704,1.22170263,2715.9,2714.1,14.5]
[1769739852873,0.30119078,2715.9,2715.0,0.01110411]
[1769739853076,0.91992934,2717.6,2715.4,0.01110411]
[1769739853406,0.91992934,2717.6,2714.9,0.92084422]
[1769739853407,0.93110116,2717.4,2714.9,0.92084422]
[1769739853579,0.01110411,2717.2,2715.0,14.5]
[1769739853787,0.01110411,2716.6,2713.8,13.51399817]
[1769739854115,14.08663108,2715.9,2713.5,0.92130644]
[1769739854315,0.2335703,2714.8,2711.6,13.52510228]
[1769739854520,13.99533519,2714.7,2712.1,0.01110411]
[1769739854720,0.1024,2714.9,2712.5,0.01110411]
[1769739854890,0.771,2714.8,2712.7,0.01110411]
[1769739855289,0.01110411,2715.2,2712.8,0.01110411]
[1769739855618,0.771,2715.2,2713.3,0.92138724]
[1769739855789,0.771,2715.2,2713.4,0.01110411]
[1769739856194,0.771,2715.1,2713.3,0.92138724]
[1769739856488,0.521,2715.1,2713.3,0.92138724]
[1769739856693,17.66664368,2715.7,2713.4,0.01110411]
[1769739856933,17.66664368,2715.7,2713.3,0.92138724]
[1769739856934,2.75457619,2715.6,2713.3,0.92138724]
[1769739857537,0.92064076,2715.5,2713.1,0.92145516]
[1769739857834,0.01110411,2715.0,2713.0,0.92147541]
[1769739858000,13.98423108,2715.3,2713.0,0.92147541]
[1769739858200,0.11350411,2714.9,2712.8,0.92154011]
[1769739858404,14.32020138,2714.3,2711.6,0.01110411]
[1769739858591,0.01110411,2714.4,2710.8,0.01110411]
[1769739858592,0.1024,2713.9,2711.7,0.92191877]
[1769739858895,0.1024,2713.9,2712.3,0.92172648]
[1769739859095,0.78210411,2713.8,2711.8,0.92188307]
[1769739859303,0.78210411,2713.8,2712.0,0.92180402]
[1769739859499,14.33130549,2713.6,2710.5,0.01110411]
[1769739859719,14.33130549,2713.6,2710.7,0.01110411]
[1769739859720,0.01110411,2713.2,2710.7,0.01110411]
[1769739860025,0.1024,2713.3,2710.0,0.01110411]
[1769739860026,0.772,2713.1,2711.3,0.92205723]
[1769739860322,0.1024,2713.3,2711.3,0.92205723]
[1769739860323,0.772,2713.0,2711.3,0.92205723]
[1769739860905,0.772,2712.9,2711.3,0.92205723]
[1769739861098,3.79850982,2713.8,2711.3,0.93316134]
[1769739861412,0.47197612,2713.6,2711.3,0.93316134]
[1769739861614,0.92131932,2713.5,2711.2,3.68826762]
[1769739861799,0.772,2713.4,2711.2,3.68826762]
[1769739862124,0.92131932,2713.5,2711.2,3.68826762]
[1769739862423,0.772,2713.4,2711.5,0.01110411]
[1769739862624,1.27985728,2713.4,2711.5,0.01110411]
[1769739862814,0.50785728,2713.4,2711.7,0.01110411]
[1769739863017,0.50785728,2713.4,2712.2,0.01110411]
[1769739863214,0.772,2713.3,2711.2,3.68826762]
[1769739863413,0.772,2713.2,2711.5,0.01110411]
[1769739863736,13.98423108,2713.8,2711.5,0.01110411]
[1769739863737,0.772,2713.1,2711.6,0.92196489]
[1769739863947,0.772,2713.2,2710.5,3.68929844]
[1769739864103,0.01110411,2713.1,2711.1,0.92211608]
[1769739864308,0.01110411,2713.1,2710.8,0.01110411]
[1769739864309,0.01110411,2712.9,2710.5,0.01110411]
[1769739864551,0.772,2712.8,2710.5,0.01110411]
[1769739864752,0.772,2712.8,2711.0,0.92216872]
[1769739864953,0.772,2712.8,2710.6,0.01110411]
[1769739864954,0.01110411,2713.1,2710.6,3.70025228]
[1769739865161,0.772,2713.0,2711.0,3.68856879]
[1769739865361,0.78310411,2712.9,2711.0,0.92216009]
[1769739865665,0.92148912,2713.0,2711.1,0.01110411]
[1769739865841,0.92148912,2713.0,2711.0,0.92216894]
[1769739866019,3.68521119,2713.6,2711.2,0.01110411]
[1769739866345,3.68521119,2713.6,2710.8,3.68867576]
[1769739866346,0.01110411,2711.3,2709.7,0.19192585]
[1769739866556,0.01110411,2711.5,2709.7,0.19192585]
[1769739866705,0.01110411,2711.4,2710.4,3.68947126]
[1769739867038,0.01110411,2711.0,2710.3,3.68952096]
[1769739867235,0.01110411,2712.0,2709.8,0.0151227]
[1769739867441,0.01110411,2712.0,2710.7,0.92225619]
[1769739867442,0.01110411,2711.6,2710.7,0.92225619]
[1769739867740,0.01110411,2711.6,2710.2,3.68970224]
[1769739867741,0.01110411,2711.0,2709.9,0.92254326]
[1769739868072,0.772,2710.9,2709.8,0.0151227]
[1769739868364,0.01110411,2711.4,2709.8,0.0151227]
[1769739868516,0.772,2711.1,2709.8,0.01412473]
[1769739868841,0.01110411,2710.8,2708.9,3.69153263]
[1769739869006,0.01110411,2710.8,2708.3,0.01110411]
[1769739869007,1.40563498,2710.8,2708.3,0.01110411]
[1769739869211,1.40563498,2710.8,2708.1,0.20309573]
[1769739869212,0.01110411,2710.3,2709.0,0.9228436]
[1769739869541,0.92250922,2710.0,2708.1,0.92315645]
[1769739869742,0.46236502,2709.9,2708.1,0.92315645]
[1769739869946,0.47346913,2709.9,2708.1,0.92315645]
[1769739870241,0.46236502,2709.9,2708.1,0.92315645]
[1769739870418,0.92249677,2710.1,2708.1,0.92315645]
[1769739870606,0.01110411,2710.0,2708.1,0.92315645]
[1769739870937,0.922271,2710.7,2708.3,13.06191374]
[1769739871112,0.93337511,2710.7,2708.3,13.07301785]
[1769739871338,0.46224591,2710.6,2708.5,13.07301785]
[1769739871557,0.92218809,2711.0,2709.0,0.92284976]
[1769739871736,0.92212436,2711.2,2709.0,0.92284976]
[1769739871936,0.01110411,2711.5,2709.1,0.01110411]
[1769739871937,3.68815725,2711.4,2709.1,0.01110411]
[1769739872266,0.46212943,2711.3,2709.3,13.07301785]
[1769739872462,0.92201164,2711.5,2709.3,13.07301785]
[1769739872976,0.01110411,2711.3,2709.0,0.93395387]
[1769739873339,0.93311575,2711.5,2709.2,0.01110411]
[1769739873534,0.92189689,2711.8,2709.4,0.92271351]
[1769739873739,3.6861708,2712.9,2710.4,13.07301785]
[1769739874052,0.01110411,2712.1,2709.7,13.06191374]
[1769739874253,0.01110411,2712.1,2709.4,0.92271351]
[1769739874254,0.01110411,2710.7,2709.4,0.92271351]
[1769739874560,0.01110411,2710.8,2709.4,0.92271351]
[1769739874868,0.01110411,2710.6,2709.4,0.92271351]
[1769739875271,0.01110411,2710.4,2709.4,0.92271351]
[1769739875460,0.01110411,2710.4,2708.4,3.69210098]
[1769739875461,0.01110411,2710.2,2709.2,0.92276173]
[1769739875663,0.01110411,2711.2,2708.5,12.67183971]
[1769739875867,0.01110411,2710.6,2708.5,12.6607356]
[1769739876370,0.92199889,2711.5,2708.5,12.6607356]
[1769739876572,0.01110411,2710.8,2708.5,12.6607356]
[1769739876945,0.46099046,2711.4,2708.9,12.6607356]
[1769739877175,0.01110411,2711.3,2708.9,12.6607356]
[1769739877578,0.01110411,2710.7,2709.0,0.92284976]
[1769739877748,0.01110411,2710.9,2709.0,0.92284976]
[1769739877951,12.87871868,2710.4,2708.0,0.01]
[1769739878153,0.01110411,2709.4,2706.9,0.19204809]
[1769739878366,0.01110411,2708.9,2706.8,3.69433348]
[1769739878548,0.01110411,2709.6,2707.6,3.69319644]
[1769739878740,0.01110411,2709.5,2707.6,3.69319644]
[1769739878941,0.01110411,2709.5,2708.3,0.92306753]
[1769739879479,0.01110411,2709.3,2708.0,0.92318185]
[1769739879658,0.01110411,2709.3,2707.2,13.11027459]
[1769739879659,0.01110411,2709.0,2707.3,0.92342924]
[1769739879988,1.69578163,2709.2,2707.3,0.92342924]
[1769739880276,0.01110411,2708.9,2707.3,0.92342924]
[1769739880445,0.773,2709.0,2707.3,0.92342924]
[1769739880649,0.46250123,2709.1,2707.3,0.92342924]
[1769739880849,0.773,2709.1,2707.3,0.92342924]
[1769739881062,0.773,2709.1,2705.3,3.87]
[1769739881063,12.88982279,2707.4,2705.3,3.87]
[1769739881385,0.01110411,2706.5,2705.3,0.92410204]
[1769739881578,0.01110411,2706.7,2704.3,3.71682705]
[1769739881579,0.92366807,2706.6,2704.5,0.92438528]
[1769739881781,0.92342924,2707.3,2704.9,0.01110411]
[1769739881944,0.92342924,2707.3,2705.5,0.01110411]
[1769739882146,0.01110411,2707.2,2704.9,12.6607356]
[1769739882367,0.01110411,2706.8,2704.4,3.70754113]
[1769739882566,0.01110411,2706.6,2704.5,0.92438528]
[1769739882979,0.773,2707.1,2704.9,12.67183971]
[1769739883188,0.92342924,2707.3,2705.2,0.01110411]
[1769739883346,0.92342924,2707.3,2705.0,12.67183971]
[1769739883347,0.773,2707.2,2705.0,12.67183971]
[1769739883556,1.6964996,2707.1,2705.1,0.92418025]
[1769739884088,1.3120362,2707.0,2705.1,0.92418025]
[1769739884883,0.92339794,2707.4,2705.4,0.01110411]
[1769739885204,0.93450205,2707.4,2705.1,0.92418025]
[1769739885409,0.01110411,2707.0,2705.1,0.92418025]
[1769739885693,0.92353913,2707.0,2705.1,0.92418025]
[1769739885904,0.46176655,2706.9,2705.1,0.92418025]
[1769739886192,3.69374074,2707.3,2705.1,0.92418025]
[1769739886375,0.773,2707.1,2705.1,0.92418025]
[1769739886560,0.92342924,2707.3,2705.1,13.59601996]
[1769739886759,0.01110411,2707.7,2705.6,12.6607356]
[1769739886961,0.01110411,2707.3,2705.1,0.92418025]
[1769739887168,0.01110411,2707.5,2705.3,0.01110411]
[1769739887372,0.78410411,2707.5,2705.3,12.67183971]
[1769739887684,0.01110411,2706.8,2704.3,0.0191227]
[1769739887883,0.92337126,2707.5,2705.3,0.92410504]
[1769739887884,0.01110411,2707.1,2705.3,0.92410504]
[1769739888195,0.01110411,2707.3,2705.3,0.92410504]
[1769739888361,0.01110411,2707.0,2705.3,0.92410504]
[1769739888562,0.01110411,2707.3,2705.3,0.92410504]
[1769739888865,0.01110411,2707.8,2705.6,12.6607356]
[1769739889194,0.01110411,2708.0,2705.6,12.6607356]
[1769739889495,0.01110411,2707.8,2705.6,12.6607356]
[1769739889794,0.93439694,2707.7,2705.7,0.92397531]
[1769739890010,0.01110411,2708.1,2705.7,0.92397531]
[1769739890011,0.01110411,2708.2,2705.9,12.6607356]
[1769739890172,0.01110411,2708.0,2705.9,12.6607356]
[1769739890568,0.774,2707.9,2705.9,12.6607356]
[1769739890769,0.01110411,2707.6,2705.9,12.6607356]
[1769739890964,0.01110411,2707.6,2705.7,0.92397531]
[1769739891699,0.92342924,2707.3,2705.5,3.69590124]
[1769739891900,0.46282503,2707.2,2705.4,0.92407777]
[1769739892086,0.01110411,2706.9,2705.4,0.92407777]
[1769739892285,0.774,2706.9,2705.4,0.92407777]
[1769739892492,0.01110411,2707.0,2705.4,0.92407777]
[1769739892690,0.78510411,2707.0,2705.4,0.92407777]
[1769739892872,0.46282503,2707.2,2705.4,0.92407777]
[1769739893072,1.23682503,2707.2,2705.4,0.92407777]
[1769739893271,0.21602543,2707.1,2705.4,0.92407777]
[1769739893502,0.21602543,2707.1,2706.1,0.002]
[1769739893703,0.9235657,2706.9,2706.1,0.002]
[1769739893910,0.9235657,2706.9,2705.1,13.5848928]
[1769739894109,0.774,2706.8,2705.1,0.9241572]
[1769739894326,0.78510411,2706.7,2705.1,15.4241572]
[1769739894621,0.46289326,2706.8,2705.1,15.4241572]
[1769739894918,0.92355206,2707.0,2705.2,12.6607356]
[1769739895297,0.01362282,2706.9,2705.1,0.9241572]
[1769739895499,0.02472693,2706.9,2705.2,14.5]
[1769739895986,0.01110411,2706.7,2705.3,0.92411192]
[1769739896182,0.01362282,2706.6,2705.2,0.9241339]
[1769739896698,0.01362282,2706.6,2705.3,27.36528199]
[1769739897014,7.57386629,2708.1,2705.7,12.86528199]
[1769739897200,0.92319054,2708.0,2706.2,12.8763861]
[1769739897406,0.93429465,2708.0,2706.2,12.86528199]
[1769739897583,0.93429465,2708.0,2706.3,14.5]
[1769739897785,3.70386629,2708.2,2706.6,12.86528199]
[1769739897786,0.01110411,2708.2,2706.6,12.86528199]
[1769739898019,0.01110411,2709.0,2706.6,12.86528199]
[1769739898323,2.67122149,2709.1,2706.8,12.86528199]
[1769739898482,2.67122149,2709.1,2706.7,0.01110411]
[1769739898483,0.92281569,2709.1,2707.0,12.86528199]
[1769739898679,0.78510411,2709.0,2707.0,12.86528199]
[1769739899107,0.01110411,2709.0,2707.0,12.86528199]
[1769739899610,0.01110411,2709.0,2706.5,0.92370219]
[1769739899611,0.01110411,2708.4,2706.5,0.92370219]
[1769739899784,0.92298604,2708.6,2706.5,13.80008829]
[1769739899981,1.46187906,2708.6,2706.5,13.80008829]
[1769739900180,1.46187906,2708.6,2706.7,12.86528199]
[1769739900597,1.46187906,2708.6,2706.7,12.8763861]
[1769739900980,1.46187906,2708.6,2706.9,12.86528199]
[1769739901185,0.774,2709.0,2706.9,12.86528199]
[1769739901421,0.01110411,2708.6,2706.5,0.92370219]
[1769739901721,0.774,2708.7,2706.6,12.86528199]
[1769739901891,0.92298604,2708.6,2706.7,28.28891593]
[1769739902226,0.01110411,2708.5,2706.7,15.42363394]
[1769739902397,0.01110411,2708.3,2706.7,14.5]
[1769739902597,0.01110411,2708.3,2706.6,0.92366695]
[1769739902802,0.01110411,2708.5,2706.6,0.92366695]
[1769739903128,0.01110411,2708.3,2706.6,0.911142]
[1769739903482,0.774,2708.2,2706.6,0.911142]
[1769739903788,0.01110411,2708.3,2706.6,0.911142]
[1769739903989,0.01110411,2707.7,2705.6,12.86528199]
[1769739904189,0.01110411,2707.7,2706.2,0.92379897]
[1769739904388,0.774,2707.6,2706.3,0.92374668]
[1769739904620,0.774,2707.6,2706.4,0.92372724]
[1769739904795,0.774,2707.6,2705.6,12.8763861]
[1769739905121,0.01110411,2707.4,2704.9,12.8763861]
[1769739905289,0.01110411,2707.0,2705.4,0.92407381]
[1769739905488,0.01110411,2706.9,2706.1,0.002]
[1769739905691,1.38041201,2707.2,2706.1,0.002]
[1769739905985,0.92353158,2707.0,2706.1,0.002]
[1769739906415,1.69753158,2707.0,2706.1,0.002]
[1769739906611,0.92353158,2707.0,2706.1,0.002]
[1769739906813,0.774,2706.9,2706.1,0.002]
[1769739907324,0.01110411,2707.9,2706.1,0.002]
[1769739907487,0.01110411,2708.3,2706.1,0.002]
[1769739907488,0.78510411,2707.8,2706.1,0.002]
[1769739907687,0.01110411,2707.8,2706.1,0.002]
[1769739907885,0.92322463,2707.9,2706.1,0.002]
[1769739908089,0.92322463,2707.9,2706.1,12.86728199]
[1769739908491,0.92322463,2707.9,2706.2,14.5]
[1769739908721,0.46161232,2707.8,2707.0,3.0]
[1769739909394,0.774,2708.1,2707.0,3.0]
[1769739909601,0.83068744,2708.6,2707.0,3.0]
[1769739909602,3.69223257,2708.4,2707.0,3.0]
[1769739909804,0.774,2708.4,2707.0,3.0]
[1769739910105,0.92308828,2708.3,2707.1,0.92349746]
[1769739910427,0.92295196,2708.7,2707.1,0.92349746]
[1769739911032,0.001,2708.8,2707.6,12.8763861]
[1769739911700,3.68990074,2710.3,2708.1,12.86528199]
[1769739911900,0.92247518,2710.1,2708.3,0.92308828]
[1769739912597,0.92337883,2710.4,2708.4,12.86528199]
[1769739912797,0.92337883,2710.4,2708.3,0.92308828]
[1769739912798,0.001,2710.4,2708.7,12.8763861]
[1769739913138,0.92338287,2710.4,2708.9,12.86528199]
[1769739913343,0.001,2710.4,2708.7,0.01110411]
[1769739913516,0.92240711,2710.3,2708.5,13.6503861]
[1769739913835,0.001,2710.4,2709.0,14.5]
[1769739913836,0.92339534,2710.4,2709.0,14.5]
[1769739914039,0.92339534,2710.4,2709.1,0.92281569]
[1769739914040,0.001,2710.4,2709.1,0.92281569]
[1769739915702,0.001,2710.4,2709.0,14.5]
[1769739915911,0.001,2710.4,2708.7,3.69139904]
[1769739916214,0.001,2710.4,2708.6,0.92298604]
[1769739916421,0.774,2710.3,2708.7,14.5]
[1769739916624,0.001,2710.4,2708.7,14.5]
[1769739917009,0.78510411,2710.3,2708.6,0.92298604]
[1769739917540,0.01110411,2710.1,2708.5,14.5]
[1769739917724,0.01110411,2710.1,2708.5,15.42300786]
[1769739917910,0.92257731,2709.8,2707.9,0.92322463]
[1769739918110,0.46239907,2709.7,2707.9,0.92322463]
[1769739918444,0.46239907,2709.7,2708.0,14.5]
[1769739919018,0.92247518,2710.1,2708.1,12.86528199]
[1769739919218,0.923464,2710.2,2708.3,12.8763861]
[1769739919418,0.923464,2710.2,2708.3,12.86528199]
[1769739919630,0.923464,2710.2,2708.4,14.5]
[1769739919833,0.923464,2710.2,2708.5,12.86528199]
[1769739920140,0.001,2710.2,2708.6,13.79937214]
[1769739920349,0.001,2710.2,2708.8,0.01110411]
[1769739920643,0.001,2710.2,2709.0,12.86528199]
[1769739920844,0.001,2710.2,2708.9,14.5]
[1769739921016,0.001,2710.2,2708.6,0.92298604]
[1769739921417,0.001,2710.2,2708.7,14.5]
[1769739921651,0.01110411,2710.1,2708.6,0.92298604]
[1769739921941,0.01110411,2710.0,2708.5,0.92300896]
[1769739922142,0.92254326,2709.9,2708.2,14.5]
[1769739922329,0.92254326,2709.9,2707.9,0.92322463]
[1769739922330,0.47348615,2709.8,2707.9,0.92322463]
[1769739922532,0.46238204,2709.8,2707.9,0.93432874]
[1769739922736,0.46238204,2709.8,2707.9,0.92322463]
[1769739923340,0.46038204,2709.8,2707.9,0.92322463]
[1769739923528,0.45838204,2709.8,2707.9,0.92322463]
[1769739923856,0.92346325,2710.2,2708.3,12.86528199]
[1769739924065,0.001,2710.4,2709.0,0.01110411]
[1769739924263,0.931103,2711.5,2709.1,12.86528199]
[1769739924466,0.01110411,2712.1,2709.8,12.8763861]
[1769739924467,0.9198289,2712.1,2709.8,12.8763861]
[1769739924630,0.9178289,2712.1,2710.1,12.86528199]
[1769739924828,0.92693301,2712.1,2710.1,12.86528199]
[1769739925133,0.45941454,2712.0,2710.1,12.86528199]
[1769739925667,0.92145516,2713.1,2710.8,13.49184358]
[1769739925832,0.01110411,2712.8,2710.4,0.01110411]
[1769739926036,0.92159103,2712.7,2710.7,0.922271]
[1769739926259,0.01110411,2712.3,2710.7,0.922271]
[1769739926470,0.47301004,2712.6,2710.7,0.922271]
[1769739926636,0.01110411,2712.1,2709.9,13.49184358]
[1769739926832,0.01110411,2712.1,2710.6,0.9223031]
[1769739927028,0.1920913,2712.5,2710.6,14.41414668]
[1769739927359,0.01110411,2712.5,2710.6,0.9223031]
[1769739927529,0.01110411,2712.3,2710.6,0.9223031]
[1769739927729,0.01110411,2712.5,2710.6,0.9223031]
[1769739927930,0.773,2712.6,2710.6,0.9223031]
[1769739928261,0.773,2712.6,2710.2,3.68922009]
[1769739928262,0.92176093,2712.2,2710.2,3.68922009]
[1769739928561,1.38375181,2712.2,2710.2,17.18106367]
[1769739928763,1.38375181,2712.2,2710.1,0.92247518]
[1769739928936,0.01110411,2712.5,2710.3,13.49184358]
[1769739929132,0.773,2713.0,2711.1,13.49184358]
[1769739929333,0.92121748,2713.8,2711.6,13.49184358]
[1769739929555,0.92121748,2713.8,2711.5,0.01110411]
[1769739929556,0.19190574,2713.6,2711.9,13.49184358]
[1769739929870,0.01110411,2713.7,2711.5,0.01110411]
[1769739930080,0.01110411,2713.3,2710.7,13.49184358]
[1769739930235,0.01110411,2712.9,2710.9,13.49184358]
[1769739930429,1.40426622,2713.3,2710.9,13.49184358]
[1769739930662,0.92137277,2713.4,2711.1,13.49184358]
[1769739930869,0.93244284,2713.5,2711.1,13.49184358]
[1769739931075,0.01110411,2714.4,2711.1,13.49184358]
[1769739931399,0.01110411,2714.4,2712.0,0.01110411]
[1769739931549,0.01110411,2714.4,2711.9,13.49184358]
[1769739931550,0.01110411,2714.0,2711.9,13.49184358]
[1769739931884,0.01110411,2714.2,2711.9,13.49184358]
[1769739932074,0.01110411,2714.1,2711.9,13.49184358]
[1769739932269,0.93224182,2714.1,2712.0,0.9218289]
[1769739932450,0.92111857,2714.1,2712.0,14.41367248]
[1769739932779,0.01110411,2714.5,2712.0,14.42477659]
[1769739932987,0.92093424,2714.7,2712.3,13.49184358]
[1769739933167,0.46156866,2714.6,2712.3,13.49184358]
[1769739933749,0.46156866,2714.6,2712.0,0.93293301]
[1769739933750,0.01110411,2713.8,2712.0,0.9218289]
[1769739934163,0.01110411,2713.4,2711.8,0.9218629]
[1769739934583,0.93235553,2713.7,2711.8,0.9218629]
[1769739934748,0.53903612,2713.6,2711.8,0.9218629]
[1769739935452,0.01110411,2713.5,2711.8,0.9218629]
[1769739935783,0.01110411,2713.3,2711.8,0.9218629]
[1769739936440,0.9214212,2713.2,2711.2,13.74445447]
[1769739936600,0.9214212,2713.2,2711.1,3.68843451]
[1769739936601,0.01110411,2712.8,2711.1,3.68843451]
[1769739936784,0.01110411,2712.6,2711.1,3.68843451]
[1769739936980,0.01110411,2712.8,2710.6,13.74445447]
[1769739937185,0.47292187,2713.1,2711.1,0.92213492]
[1769739937419,0.21673431,2713.0,2711.1,0.92213492]
[1769739938108,0.21673431,2713.0,2711.1,14.6776935]
[1769739938310,1.69425142,2713.7,2711.6,0.92196489]
[1769739938519,0.92125142,2713.7,2711.7,13.74445447]
[1769739939187,0.92118353,2713.9,2711.7,13.74445447]
[1769739939412,1.38254858,2714.6,2712.2,13.74445447]
[1769739939620,3.68419113,2714.5,2712.4,13.75555858]
[1769739939799,0.773,2714.7,2712.4,13.75555858]
[1769739940006,0.773,2714.7,2712.7,13.74445447]
[1769739940207,0.92087814,2714.8,2712.7,13.74445447]
[1769739940426,0.46154262,2714.7,2712.7,13.74445447]
[1769739940633,0.92094599,2714.6,2712.8,0.92155706]
[1769739941124,0.01110411,2714.5,2712.8,0.92155706]
[1769739941329,0.01110411,2714.3,2712.7,0.92157875]
[1769739941550,0.01110411,2714.3,2711.7,0.773]
[1769739941551,13.46908484,2714.1,2712.3,0.92170478]
[1769739941828,0.01110411,2713.9,2712.4,0.92167974]
[1769739942025,0.772,2713.8,2712.7,0.9215876]
[1769739942222,0.772,2713.8,2712.4,0.92166924]
[1769739942437,17.15282749,2714.8,2712.7,0.92157303]
[1769739942727,17.15282749,2714.8,2712.1,0.92179491]
[1769739942728,0.01110411,2713.9,2712.1,0.92179491]
[1769739943023,13.48018895,2714.1,2712.1,0.92179491]
[1769739943229,1.3480189,2714.0,2712.1,0.92179491]
[1769739943390,0.93215189,2714.3,2712.1,0.92179491]
[1769739943594,0.01110411,2713.9,2712.1,0.92179491]
[1769739943790,0.01110411,2713.7,2712.1,0.92179491]
[1769739944191,0.01110411,2713.2,2711.7,0.92191085]
[1769739944500,0.92135328,2713.4,2711.0,3.69971265]
[1769739944800,1.23378705,2713.3,2712.0,0.002]
[1769739945020,0.46178705,2713.3,2712.0,0.002]
[1769739945326,0.772,2713.2,2712.0,0.002]
[1769739945513,0.01110411,2713.1,2712.0,0.002]
[1769739947525,0.92148912,2713.0,2712.0,0.002]
[1769739947742,0.46178705,2713.3,2712.0,0.002]
[1769739947909,0.92226243,2713.7,2712.0,13.74645447]
[1769739948104,1.38298873,2713.7,2712.0,13.74645447]
[1769739949719,1.38298873,2713.7,2711.2,0.01110411]
[1769739949720,0.01110411,2712.9,2710.5,17.43313023]
[1769739950033,0.772,2712.8,2711.5,0.92199691]
[1769739950517,0.01110411,2713.1,2711.5,0.92199691]
[1769739950727,0.772,2713.0,2711.5,0.92199691]
[1769739951028,0.01110411,2713.3,2711.5,0.92199691]
[1769739951332,0.01110411,2713.3,2711.5,14.66645138]
[1769739951626,0.01110411,2713.3,2711.5,0.92199691]
[1769739951826,0.92148912,2713.0,2711.1,3.6884425]
[1769739952027,0.01110411,2712.9,2711.0,0.92216894]
[1769739952430,0.92148912,2713.0,2711.0,0.92216894]
[1769739952431,0.772,2712.8,2711.0,0.92216894]
[1769739953231,0.01110411,2712.6,2711.0,0.92216894]
[1769739953731,0.92165898,2712.5,2710.5,3.68928563]
[1769739953909,1.2339399,2712.4,2710.5,17.4337401]
[1769739954308,1.2339399,2712.4,2710.5,13.74445447]
[1769739954541,0.4619399,2712.4,2710.5,13.74445447]
[1769739954746,0.772,2712.3,2710.5,13.74445447]
[1769739955538,14.02090121,2712.3,2710.4,0.92237308]
[1769739955835,0.92179491,2712.1,2710.0,0.92250922]
[1769739956036,0.92179491,2712.1,2710.0,0.93361333]
[1769739956333,0.92179491,2712.1,2710.4,13.55869526]
[1769739956537,0.92179491,2712.1,2710.0,14.49230859]
[1769739956735,0.53809746,2712.0,2710.0,14.49230859]
[1769739957929,0.9218629,2711.9,2710.7,0.002]
[1769739958137,4.22554906,2712.0,2710.7,0.002]
[1769739958138,1.45994461,2712.0,2710.7,0.002]
[1769739958342,0.92184715,2712.0,2710.7,0.002]
[1769739958514,0.001,2712.6,2711.1,13.55869526]
[1769739958715,0.001,2712.6,2711.4,0.01110411]
[1769739959137,0.001,2712.6,2711.4,13.56979937]
[1769739959436,0.92264387,2712.6,2711.4,13.55869526]
[1769739959735,0.92264955,2712.6,2711.4,13.55869526]
[1769739959934,1.34481461,2712.6,2710.9,0.92220295]
[1769739960137,1.34481461,2712.6,2711.1,13.55869526]
[1769739960138,0.001,2712.6,2711.1,13.55869526]
[1769739960308,0.001,2712.6,2711.4,13.56979937]
[1769739960506,0.001,2712.6,2711.4,13.55869526]
[1769739961004,0.92140606,2713.3,2711.7,13.55869526]
[1769739961343,14.61987539,2713.3,2711.1,13.55869526]
[1769739961567,0.01110411,2713.0,2710.9,0.92220295]
[1769739961739,0.01110411,2712.8,2710.9,0.92220295]
[1769739961930,0.92159103,2712.7,2710.8,3.68881183]
[1769739962130,0.46190593,2712.6,2710.8,3.68881183]
[1769739962540,0.46190593,2712.6,2710.7,3.69081183]
[1769739963166,1.38207141,2713.3,2711.4,13.55869526]
[1769739963458,3.68515768,2713.6,2711.7,13.56979937]
[1769739963861,3.68515768,2713.6,2711.7,13.55869526]
[1769739964049,3.68515768,2713.6,2711.8,0.92189689]
[1769739964248,0.01110411,2713.4,2711.7,0.92191146]
[1769739964558,13.24890121,2713.2,2711.5,0.92197582]
[1769739964736,0.01110411,2713.0,2711.6,0.92196351]
[1769739965254,0.01110411,2713.0,2711.6,0.92194013]
[1769739965564,0.772,2712.9,2711.7,0.92189984]
[1769739965862,13.24890121,2713.4,2711.7,0.92190014]
[1769739966042,0.9214212,2713.2,2711.3,3.68822744]
[1769739966358,0.93252531,2713.2,2711.2,0.92210091]
[1769739966729,0.772,2713.1,2711.2,0.93320502]
[1769739966930,0.01110411,2713.0,2711.2,0.92210091]
[1769739967159,1.40209012,2712.9,2711.2,0.92210091]
[1769739967361,0.772,2713.0,2711.2,0.92210091]
[1769739967558,0.772,2713.0,2711.3,14.5]
[1769739967770,0.92135328,2713.4,2711.7,13.55869526]
[1769739968064,1.80125291,2713.4,2711.7,13.55869526]
[1769739968262,0.92130897,2713.6,2711.9,13.56979937]
[1769739968437,0.92130897,2713.6,2712.0,14.5]